{"text_format":"1","workbook":"xlsx","n_sheets":2,"sheets":["PIC18F25K22","XC2224L-48"],"not_rendered":{"charts":0,"images":0,"macros":1,"external_links":1,"defined_names":9,"comments":0,"pivot_tables":0},"unopened":[],"bounds":{"document_bytes":16777216,"sheet_cells":100000,"rows_first":2000,"rows_last":500,"rows_between":2000,"halvings":0,"cell_chars":16384,"cell_head_chars":4096},"cells_cut":0,"cells_raw":0,"read":"whole","date_system":"1900"}

{"sheet":"PIC18F25K22","index":0,"n_rows":103,"n_cols":26,"rows_kept":103,"cut":false,"hidden":false,"merged":[]}
["PIC18F25K22 (28-PIN SOIC) Microcontroller Pinout",null,null,null,null,null,null,null,null,null,null,null,null,null,null,null,null,null,"I/O Allocation"]
[null,null,"Configuration Options - [Enter all purposes for each pin here]"]
["Pin","Function","IO","ANALOG","COMPARATOR","CTMU","SR LATCH","REF.","ECCP","EUSART","MSSP","TIMERS","INTS","BASIC",null,null,null,null,"Item","Description","I/O","Micro","Pin","Function",null,"Comment"]
[1,"/MCLR VPP",null,null,null,null,null,null,null,null,null,null,null,"/MCLR VPP",null,null,null,null,1,"Battery Sense","AI","AI",{"$f":"A5","v":2},{"$f":"IF(W4=\"\",\"\",VLOOKUP(W4,$A$4:$B$67,2,TRUE))","v":"AN0"}]
[2,"AN0","RA0","AN0","C12IN0-",null,null,null,null,null,null,null,null,null,null,null,null,null,2,"Wake In","AI","AI",{"$f":"A6","v":3},"AN1"]
[3,"AN1","RA1","AN1","C12IN1-",null,null,null,null,null,null,null,null,null,null,null,null,null,3,"Learn In","AI","AI",{"$f":"A7","v":4},"AN2"]
[4,"AN2","RA2","AN2","C2IN+",null,null,"VREF- DACOUT",null,null,null,null,null,null,null,null,null,null,4,"Wake Out","O","O",{"$f":"A21","v":18},"RC7"]
[5,"C1IN+","RA3","AN3","C1IN+",null,null,"VREF+",null,null,null,null,null,null,null,null,null,null,5,"Power Control","O","O",{"$f":"A27","v":24},"RB3"]
[6,"C1OUT","RA4",null,"C1OUT",null,"SRQ",null,"CCP5",null,null,"TOCKI",null,null,null,null,null,null,6,"Backlight Control","PWM","PWM",{"$f":"A20","v":17},"CCP3 P3A","x"]
[7,null,"RA5","AN4","C2OUT",null,"SRNQ","HLVDIN",null,null,"/SS1",null,null,null,null,null,null,null,7,"H-Bridge Phase A","PWM","PWM",{"$f":"A15","v":12},"CCP2 P2A"]
[8,"VSS",null,null,null,null,null,null,null,null,null,null,null,"VSS",null,null,null,null,8,"H-Bridge Phase B","PWM","PWM",{"$f":"A16","v":13},"CCP1 P1A"]
[9,null,"RA7",null,null,null,null,null,null,null,null,null,null,"OSC1 CLKI",null,null,null,null,9,"H-Bridge Status","I","I",{"$f":"A14","v":11},"RC0"]
[10,null,"RA6",null,null,null,null,null,null,null,null,null,null,"OSC2 CLKO",null,null,null,null,10,"Key 1","I","I",{"$f":"A26","v":23},"INT2"]
[11,"RC0","RC0",null,null,null,null,null,"P2B",null,null,"SOSCO T1CKI T3CKI T3G",null,null,null,null,null,null,11,"Key 2","I","I",{"$f":"A28","v":25},"IOC"]
[12,"CCP2 P2A","RC1",null,null,null,null,null,"CCP2 P2A",null,null,"SOSCI",null,null,null,null,null,null,12,"Key 3","I","I",{"$f":"A29","v":26},"IOC"]
[13,"CCP1 P1A","RC2","AN14",null,"CTPLS",null,null,"CCP1 P1A",null,null,"T5CKI",null,null,null,null,null,null,13,"Key 4","I","I",{"$f":"A30","v":27},"IOC"]
[14,null,"RC3","AN15",null,null,null,null,null,null,"SCK1 SCL1",null,null,null,null,null,null,null,14,"Key 5","I","I",{"$f":"A31","v":28},"IOC"]
[15,"SDI1 SDA1","RC4","AN16",null,null,null,null,null,null,"SDI1 SDA1",null,null,null,null,null,null,null,15,"Acoustic Signal","O","O",{"$f":"A24","v":21},"RB0"]
[16,"SDO1","RC5","AN17",null,null,null,null,null,null,"SDO1",null,null,null,null,null,null,null,16,"LIN Rx","I","I",{"$f":"A18","v":15},"SDI1 SDA1"]
[17,"CCP3 P3A","RC6","AN18",null,null,null,null,"CCP3 P3A","TX1 CK1",null,null,null,null,null,null,null,null,17,"LIN Tx","O","O",{"$f":"A19","v":16},"SDO1",null,"The Microchip LIN demo board uses a different pinout"]
[18,"RC7","RC7","AN19",null,null,null,null,"P3B","RX1 DT1",null,null,null,null,null,null,null,null,18,"LIN Enable","O","O",{"$f":"A25","v":22},"RB1"]
[19,"VSS",null,null,null,null,null,null,null,null,null,null,null,"VSS",null,null,null,null,19,"HV Enable","IOX","IOX",{"$f":"A9","v":6},"C1OUT",null,"Hardware threshold to shutdown drivers"]
[20,"VDD",null,null,null,null,null,null,null,null,null,null,null,"VDD",null,null,null,null,20,"Hi V Threshold","AI","AI",{"$f":"A8","v":5},"C1IN+",null,"Alternate to internal DAC"]
[21,"RB0","RB0","AN12",null,null,"SRI",null,"CCP4 FLT0",null,"/SS2",null,"INT0",null,null,null,null,null,21]
[22,"RB1","RB1","AN10","C12IN3-",null,null,null,"P1C",null,"SCK2 SCL2",null,"INT1",null,null,null,null,null,22]
[23,"INT2","RB2","AN8",null,"CTED1",null,null,"P1B",null,"SDI2 SDA2",null,"INT2",null,null,null,null,null,23]
[24,"RB3","RB3","AN9","C12IN2-","CTED2",null,null,"CCP2 P2A",null,"SDO2",null,null,null,null,null,null,null,24]
[25,"IOC","RB4","AN11",null,null,null,null,"P1D",null,null,"T5G","IOC",null,null,null,null,null,25]
[26,"IOC","RB5","AN13",null,null,null,null,"CCP3 P3A P2B",null,null,"T1G T3CKI","IOC",null,null,null,null,null,26]
[27,"IOC","RB6",null,null,null,null,null,null,"TXC CK2",null,null,"IOC","PGC",null,null,null,null,27]
[28,"IOC","RB7",null,null,null,null,null,null,"RX2 DT2",null,null,"IOC","PGD",null,null,null,null,28]
[]
[]
[]
[]
[]
[]
[]
[null,null,null,null,null,null,null,null,null,null,null,null,null,null,null,null,null,null,null,null,null,null,null,{"$f":"IF(W39=\"\",\"\",VLOOKUP(W39,$A$4:$B$67,2,TRUE))","v":""}]
[null,null,null,null,null,null,null,null,null,null,null,null,null,null,null,null,null,null,null,null,null,null,null,""]
[null,null,null,null,null,null,null,null,null,null,null,null,null,null,null,null,null,null,null,null,null,null,null,""]
[null,null,null,null,null,null,null,null,null,null,null,null,null,null,null,null,null,null,null,null,null,null,null,""]
[null,null,null,null,null,null,null,null,null,null,null,null,null,null,null,null,null,null,null,null,null,null,null,""]
[null,null,null,null,null,null,null,null,null,null,null,null,null,null,null,null,null,null,null,null,null,null,null,""]
[null,null,null,null,null,null,null,null,null,null,null,null,null,null,null,null,null,null,null,null,null,null,null,""]
[null,null,null,null,null,null,null,null,null,null,null,null,null,null,null,null,null,null,null,null,null,null,null,""]
[null,null,null,null,null,null,null,null,null,null,null,null,null,null,null,null,null,null,null,null,null,null,null,""]
[null,null,null,null,null,null,null,null,null,null,null,null,null,null,null,null,null,null,null,null,null,null,null,""]
[null,null,null,null,null,null,null,null,null,null,null,null,null,null,null,null,null,null,null,null,null,null,null,""]
[]
[]
[]
[]
[]
[]
[]
[]
[]
[]
[]
[]
[]
[]
[]
[]
[]
[]
[]
[null,{"$f":"MAX(A4:A67)-COUNTA(B4:B67)","v":4},"Remaining Pins"]
[]
[]
[]
[]
[]
[]
[]
[]
[]
[]
[]
[]
[]
[]
[]
[]
[]
[]
[null,null,null,null,null,null,null,null,null,null,null,null,null,null,null,null,null,null,85,null,null,null,null,{"$f":"IF(W88=\"\",\"\",VLOOKUP(W88,$A$4:$B$67,2,TRUE))","v":""}]
[null,null,null,null,null,null,null,null,null,null,null,null,null,null,null,null,null,null,86,null,null,null,null,{"$f":"IF(W89=\"\",\"\",VLOOKUP(W89,$A$4:$B$67,2,TRUE))","v":""}]
[null,null,null,null,null,null,null,null,null,null,null,null,null,null,null,null,null,null,87,null,null,null,null,{"$f":"IF(W90=\"\",\"\",VLOOKUP(W90,$A$4:$B$67,2,TRUE))","v":""}]
[null,null,null,null,null,null,null,null,null,null,null,null,null,null,null,null,null,null,88,null,null,null,null,{"$f":"IF(W91=\"\",\"\",VLOOKUP(W91,$A$4:$B$67,2,TRUE))","v":""}]
[null,null,null,null,null,null,null,null,null,null,null,null,null,null,null,null,null,null,89,null,null,null,null,{"$f":"IF(W92=\"\",\"\",VLOOKUP(W92,$A$4:$B$67,2,TRUE))","v":""}]
[]
[null,null,null,null,null,null,null,null,null,null,null,null,null,null,null,null,null,null,"Abbrev","I/O Type","Total","Allocated to micro","Balance"]
[null,null,null,null,null,null,null,null,null,null,null,null,null,null,null,null,null,null,"IO","I/O",{"$f":"COUNTIF(U$4:U$92,$S95)","v":0},0,{"$f":"U95-V95","v":0}]
[null,null,null,null,null,null,null,null,null,null,null,null,null,null,null,null,null,null,"I","Input",7,7,0]
[null,null,null,null,null,null,null,null,null,null,null,null,null,null,null,null,null,null,"O","Output",5,5,0]
[null,null,null,null,null,null,null,null,null,null,null,null,null,null,null,null,null,null,"IOX","I/O and Tristate",1,1,0]
[null,null,null,null,null,null,null,null,null,null,null,null,null,null,null,null,null,null,"AI","Analog Input",4,4,0]
[null,null,null,null,null,null,null,null,null,null,null,null,null,null,null,null,null,null,"AO","Analog Output",0,0,0]
[null,null,null,null,null,null,null,null,null,null,null,null,null,null,null,null,null,null,"PWM","Pulse Width",3,3,0]
[null,null,null,null,null,null,null,null,null,null,null,null,null,null,null,null,null,null,null,null,0,0,0]
[null,null,null,null,null,null,null,null,null,null,null,null,null,null,null,null,null,null,null,"Total pins",{"$f":"SUM(U95:U102)","v":20},{"$f":"SUM(V95:V102)","v":20}]

{"sheet":"XC2224L-48","index":1,"n_rows":103,"n_cols":24,"rows_kept":103,"cut":false,"hidden":false,"merged":[[2,2,2,12]]}
["XC2224L Microcontroller Pinout",null,null,null,null,null,null,null,null,null,null,null,null,null,null,null,"I/O Allocation"]
[]
["Pin","Function","Configuration Options - [Enter all purposes for each pin here]",null,null,null,null,null,null,null,null,null,null,null,null,null,"Item","Description","I/O","Micro","Pin","Function",null,"Comment"]
[1,"/TESTM","/TESTM",null,null,null,null,null,null,null,null,null,null,null,null,null,1,"Battery Sense","AI","AI",{"$f":"A13","v":10},{"$f":"IF(U4=\"\",\"\",VLOOKUP(U4,$A$4:$B$67,2,TRUE))","v":"ADC0_CH0"}]
[2,"/TRST","/TRST",null,null,null,null,null,null,null,null,null,null,null,null,null,2,"Wake In","AI","AI",{"$f":"A14","v":11},"ADC0_CH2"]
[3,"ADC0_REQTRyF","P6.3","CCU63_COUT62","T3OUT","U1C1_SELO0","U1C1_DX2D","ADC0_REQTRyF",null,null,null,null,null,null,null,null,3,"Wake Out","O","O",{"$f":"A27","v":24},"P2.5"]
[4,"ADC0_REQTRyE","P6.1","ADC0_CH17","EMUX1","T3OUT","U1C1_DOUT","ADC0_REQTRyE","CCU63_CTRAPB","U1C1_DX0A","ESR1_6",null,null,null,null,null,4,"Power Control","O","O",{"$f":"A37","v":34},"P10.3"]
[5,"ADC0_REQGTyG","P6.0","ADC0_CH16","EMUX0","CCU63_COUT61","/BRKOUT","ADC0_REQGTyG","U1C1_DX0E",null,null,null,null,null,null,null,5,"Backlight Control","PWM","PWM",{"$f":"A28","v":25},"CC2_CC19"]
[6,"VSS","VSS",null,null,null,null,null,null,null,null,null,null,null,null,null,6,"H-Bridge Phase A","PWM","PWM",{"$f":"A34","v":31},"CCU60_CC60"]
[7,"VDDPB","VDDPB",null,null,null,null,null,null,null,null,null,null,null,null,null,7,"H-Bridge Phase B","PWM","PWM",{"$f":"A35","v":32},"CCU60_CC61"]
[8,"VAREF","VAREF",null,null,null,null,null,null,null,null,null,null,null,null,null,8,"H-Bridge Status","I","I",{"$f":"A36","v":33},"P10.2"]
[9,"VAGND","VAGND",null,null,null,null,null,null,null,null,null,null,null,null,null,9,"Key 1","I","I",{"$f":"A6","v":3},"ADC0_REQTRyF",null,"can be interrupt input"]
[10,"ADC0_CH0","P5.0","ADC0_CH0",null,null,null,null,null,null,null,null,null,null,null,null,10,"Key 2","I","I",{"$f":"A7","v":4},"ADC0_REQTRyE",null,"can be interrupt input"]
[11,"ADC0_CH2","P5.2","ADC0_CH2","TDI_A",null,null,null,null,null,null,null,null,null,null,null,11,"Key 3","I","I",{"$f":"A8","v":5},"ADC0_REQGTyG",null,"can be interrupt input"]
[12,"ADC0_CH3","P5.3","ADC0_CH3","T3INA",null,null,null,null,null,null,null,null,null,null,null,12,"Key 4","I","I",{"$f":"A24","v":21},"CCU63_CC62",null,"can be interrupt input"]
[13,"TMS_A","P5.4","ADC0_CH4","CCU63_T12HRB","T3EUDA","TMS_A",null,null,null,null,null,null,null,null,null,13,"Key 5","I","I",{"$f":"A29","v":26},"CC2_CC20",null,"can be interrupt input"]
[14,null,"P5.8","ADC0_CH8","CCU6x_T12HRC","CCU6x_T13HRC",null,null,null,null,null,null,null,null,null,null,14,"Acoustic Signal","O","O",{"$f":"A41","v":38},"P10.7"]
[15,null,"P5.9","ADC0_CH9","CC2_T7IN",null,null,null,null,null,null,null,null,null,null,null,15,"CAN Rx","I","I",{"$f":"A19","v":16},"RxDC0C"]
[16,"RxDC0C","P2.0","CCU63_CC60","RxDC0C","CCU63_CC60INB","ADC0_CH19","T5INB",null,null,null,null,null,null,null,null,16,"CAN Tx","O","O",{"$f":"A20","v":17},"TxDC0"]
[17,"TxDC0","P2.1","TxDC0","CCU63_CC61","CCU63_CC61INB","ADC0_CH20","T5EUDB","ESR1_5","ERU_0A0",null,null,null,null,null,null,17,"CAN Enable","O","O",{"$f":"A39","v":36},"P10.5"]
[18,"VDDIM","VDDIM",null,null,null,null,null,null,null,null,null,null,null,null,null,18,"CAN Slope Control","IOX","IOX",{"$f":"A40","v":37},"P10.6"]
[19,"VSS","VSS",null,null,null,null,null,null,null,null,null,null,null,null,null,19,"LIN Rx","I","I",{"$f":"A26","v":23},"U0C0_DX0F"]
[20,"VDDPB","VDDPB",null,null,null,null,null,null,null,null,null,null,null,null,null,20,"LIN Tx","O","O",{"$f":"A25","v":22},"U0C0_DOUT"]
[21,"CCU63_CC62","P2.2","TxDC1","CCU63_CC62","CCU63_CC62INB","ESR2_5","ERU_1A0",null,null,null,null,null,null,null,null,21,"LIN Enable","O","O",{"$f":"A42","v":39},"P10.8"]
[22,"U0C0_DOUT","P2.3","U0C0_DOUT","CCU63_COUT63","CC2_CC16","ESR2_2","U0C0_DX0E","U0C1_DX0D","RxDC0A",null,null,null,null,null,null,22,"EEROM CS","O","O",{"$f":"A33","v":30},"P2.13"]
[23,"U0C0_DX0F","P2.4","U0C1_DOUT","TxDC0","CC2_CC16","ESR1_0","U0C0_DX0F","RxDC1A",null,null,null,null,null,null,null,23,"EEROM DI","O","O",{"$f":"A31","v":28},"U0C1_DOUT"]
[24,"P2.5","P2.5","U0C0_SCLKOUT","TxDC0","CC2_CC16","U0C0_DX1D","ESR1_10",null,null,null,null,null,null,null,null,24,"EEROM DO","I","I",{"$f":"A32","v":29},"U0C1_DX0E"]
[25,"CC2_CC19","P2.6","U0C0_SELO0","U0C1_SELO1","CC2_CC19","CLKIN1","U0C0_DX2D","RxDC0D","ESR2_6",null,null,null,null,null,null,25,"EEROM CLK","O","O",{"$f":"A30","v":27},"U0C1_SCLKOUT"]
[26,"CC2_CC20","P2.7","U0C1_SELO0","U0C0_SELO1","CC2_CC20","U0C1_DX2C","ESR2_7","RxDC1C","U1C0_DX0A",null,null,null,null,null,null,26,"JTAG - TMS","I","I",{"$f":"A16","v":13},"TMS_A"]
[27,"U0C1_SCLKOUT","P2.8","U0C1_SCLKOUT","EXTCLK","CC2_CC21","U0C1_DX1D",null,null,null,null,null,null,null,null,null,27,"JTAG - TDI","I","I",{"$f":"A47","v":44},"TDI_B"]
[28,"U0C1_DOUT","P2.9","U0C1_DOUT","TxDC1","CC2_CC22","C1","TCK_A","DAP0",null,null,null,null,null,null,null,28,"JTAG - TDO","O","O",{"$f":"A48","v":45},"TDO_A"]
[29,"U0C1_DX0E","P2.10","U0C1_DOUT","U0C0_SELO3","CC2_CC23","U0C1_DX0E","CAPINA",null,null,null,null,null,null,null,null,29,"JTAG - !TRST","I","I",{"$f":"A5","v":2},"/TRST"]
[30,"P2.13","P2.13","U1C1_DOUT","CCU63_COUT60","U1C1_DX0B","U1C0_DX0B",null,null,null,null,null,null,null,null,null,30,"JTAG - TCK","I","I",{"$f":"A43","v":40},"TCK_B"]
[31,"CCU60_CC60","P10.0","U0C1_DOUT","CCU60_CC60","CCU60_CC60INA","ESR1_2","U0C0_DX0A","U0C1_DX0A","U1C1_DX0C",null,null,null,null,null,null,31,"JTAG - !RESET","IO","IO",{"$f":"A51","v":48},"/PORST"]
[32,"CCU60_CC61","P10.1","U0C0_DOUT","CCU60_CC61","CCU60_CC61INA","U0C0_DX0B","U0C0_DX1A",null,null,null,null,null,null,null,null,32,"XTAL 1","I","I",{"$f":"A50","v":47},"XTAL1"]
[33,"P10.2","P10.2","U0C0_SCLKOUT","CCU60_CC62","CCU60_CC62INA","U0C0_DX1B",null,null,null,null,null,null,null,null,null,33,"XTAL 2","O","O",{"$f":"A49","v":46},"XTAL2"]
[34,"P10.3","P10.3","CCU60_COUT60","U0C0_DX2A","U0C1_DX2A","RxDC1D",null,null,null,null,null,null,null,null,null,34,"Learn In","AI","AI",{"$f":"A15","v":12},"ADC0_CH3"]
[35,null,"P10.4","U0C0_SELO3","CCU60_COUT61","U0C0_DX2B","U0C1_DX2B","ESR1_9",null,null,null,null,null,null,null,null,35,null,null,null,null,""]
[36,"P10.5","P10.5","U0C1_SCLKOUT","CCU60_COUT62","U0C1_DX1B",null,null,null,null,null,null,null,null,null,null,36,null,null,null,null,""]
[37,"P10.6","P10.6","U0C0_DOUT","U1C0_DOUT","U0C1_SELO0","U0C0_DX0C","U1C0_DX2D","CCU6x_CTRAPA","U1C0_DX0F",null,null,null,null,null,null,37,null,null,null,null,""]
[38,"P10.7","P10.7","U0C1_DOUT","CCU60_COUT63","CCU63_COUT61","U0C1_DX0B","CCU60_CCPOS0A","T4INB",null,null,null,null,null,null,null,38,null,null,null,null,""]
[39,"P10.8","P10.8","U0C0_MCLKOUT","U0C1_SELO0","U1C0_SCLKOUT","CCU60_CCPOS1A","U0C0_DX1C","/BRKIN_B","T3EUDB","U1C0_DX1A",null,"ESR2_11",null,null,null,39,null,null,null,null,""]
[40,"TCK_B","P10.9","U0C0_SELO4","U0C1_MCLKOUT","TxDC1","CCU60_CCPOS2A","TCK_B","T3INB","DAP0",null,null,null,null,null,null,40,null,null,null,null,""]
[41,"VDDPB","VDDPB",null,null,null,null,null,null,null,null,null,null,null,null,null,41,null,null,null,null,""]
[42,"VSS","VSS",null,null,null,null,null,null,null,null,null,null,null,null,null,42,null,null,null,null,""]
[43,"VDDIM","VDDIM",null,null,null,null,null,null,null,null,null,null,null,null,null,43,null,null,null,null,""]
[44,"TDI_B","P10.10","U0C0_SELO0","CCU60_COUT63","U1C0_DOUT","U0C0_DX2C","TDI_B","U0C1_DX1A",null,null,null,null,null,null,null,44,null,null,null,null,""]
[45,"TDO_A","P10.12","U1C0_DOUT","U0C0_DOUT","CCU63_COUT62","SPD_0","C0","U0C0_DX0D","U1C0_DX0C","U1C0_DX1E","TDO_A","DAP1",null,null,null,45,null,null,null,null,""]
[46,"XTAL2","XTAL2",null,null,null,null,null,null,null,null,null,null,null,null,null,46,null,null,null,null,""]
[47,"XTAL1","XTAL1","ESR2_9",null,null,null,null,null,null,null,null,null,null,null,null,47,null,null,null,null,""]
[48,"/PORST","/PORST",null,null,null,null,null,null,null,null,null,null,null,null,null,48,null,null,null,null,""]
[null,null,null,null,null,null,null,null,null,null,null,null,null,null,null,null,49,null,null,null,null,""]
[null,null,null,null,null,null,null,null,null,null,null,null,null,null,null,null,50,null,null,null,null,""]
[null,null,null,null,null,null,null,null,null,null,null,null,null,null,null,null,51,null,null,null,null,""]
[null,null,null,null,null,null,null,null,null,null,null,null,null,null,null,null,52,null,null,null,null,""]
[null,null,null,null,null,null,null,null,null,null,null,null,null,null,null,null,53,null,null,null,null,""]
[null,null,null,null,null,null,null,null,null,null,null,null,null,null,null,null,54,null,null,null,null,""]
[null,null,null,null,null,null,null,null,null,null,null,null,null,null,null,null,55,null,null,null,null,""]
[null,null,null,null,null,null,null,null,null,null,null,null,null,null,null,null,56,null,null,null,null,""]
[null,null,null,null,null,null,null,null,null,null,null,null,null,null,null,null,57,null,null,null,null,""]
[null,null,null,null,null,null,null,null,null,null,null,null,null,null,null,null,58,null,null,null,null,""]
[null,null,null,null,null,null,null,null,null,null,null,null,null,null,null,null,59,null,null,null,null,""]
[null,null,null,null,null,null,null,null,null,null,null,null,null,null,null,null,60,null,null,null,null,""]
[null,null,null,null,null,null,null,null,null,null,null,null,null,null,null,null,61,null,null,null,null,""]
[null,null,null,null,null,null,null,null,null,null,null,null,null,null,null,null,62,null,null,null,null,""]
[null,null,null,null,null,null,null,null,null,null,null,null,null,null,null,null,63,null,null,null,null,""]
[null,null,null,null,null,null,null,null,null,null,null,null,null,null,null,null,64,null,null,null,null,""]
[null,null,null,null,null,null,null,null,null,null,null,null,null,null,null,null,65,null,null,null,null,{"$f":"IF(U68=\"\",\"\",VLOOKUP(U68,$A$4:$B$67,2,TRUE))","v":""}]
[null,null,null,null,null,null,null,null,null,null,null,null,null,null,null,null,66,null,null,null,null,""]
[null,null,null,null,null,null,null,null,null,null,null,null,null,null,null,null,67,null,null,null,null,""]
[null,null,null,null,null,null,null,null,null,null,null,null,null,null,null,null,68,null,null,null,null,""]
[null,null,null,null,null,null,null,null,null,null,null,null,null,null,null,null,69,null,null,null,null,""]
[null,{"$f":"MAX(A4:A67)","v":48},"Total Available Pins",null,null,null,null,null,null,null,null,null,null,null,null,null,70,null,null,null,null,""]
[null,null,null,null,null,null,null,null,null,null,null,null,null,null,null,null,71,null,null,null,null,""]
[null,null,null,null,null,null,null,null,null,null,null,null,null,null,null,null,72,null,null,null,null,""]
[null,null,null,null,null,null,null,null,null,null,null,null,null,null,null,null,73,null,null,null,null,""]
[null,null,null,null,null,null,null,null,null,null,null,null,null,null,null,null,74,null,null,null,null,""]
[null,null,null,null,null,null,null,null,null,null,null,null,null,null,null,null,75,null,null,null,null,""]
[null,null,null,null,null,null,null,null,null,null,null,null,null,null,null,null,76,null,null,null,null,""]
[null,null,null,null,null,null,null,null,null,null,null,null,null,null,null,null,77,null,null,null,null,""]
[null,null,null,null,null,null,null,null,null,null,null,null,null,null,null,null,78,null,null,null,null,""]
[null,null,null,null,null,null,null,null,null,null,null,null,null,null,null,null,79,null,null,null,null,""]
[null,null,null,null,null,null,null,null,null,null,null,null,null,null,null,null,80,null,null,null,null,""]
[null,null,null,null,null,null,null,null,null,null,null,null,null,null,null,null,81,null,null,null,null,""]
[null,null,null,null,null,null,null,null,null,null,null,null,null,null,null,null,82,null,null,null,null,""]
[null,null,null,null,null,null,null,null,null,null,null,null,null,null,null,null,83,null,null,null,null,""]
[null,null,null,null,null,null,null,null,null,null,null,null,null,null,null,null,84,null,null,null,null,""]
[null,null,null,null,null,null,null,null,null,null,null,null,null,null,null,null,85,null,null,null,null,{"$f":"IF(U88=\"\",\"\",VLOOKUP(U88,$A$4:$B$67,2,TRUE))","v":""}]
[null,null,null,null,null,null,null,null,null,null,null,null,null,null,null,null,86,null,null,null,null,{"$f":"IF(U89=\"\",\"\",VLOOKUP(U89,$A$4:$B$67,2,TRUE))","v":""}]
[null,null,null,null,null,null,null,null,null,null,null,null,null,null,null,null,87,null,null,null,null,{"$f":"IF(U90=\"\",\"\",VLOOKUP(U90,$A$4:$B$67,2,TRUE))","v":""}]
[null,null,null,null,null,null,null,null,null,null,null,null,null,null,null,null,88,null,null,null,null,{"$f":"IF(U91=\"\",\"\",VLOOKUP(U91,$A$4:$B$67,2,TRUE))","v":""}]
[null,null,null,null,null,null,null,null,null,null,null,null,null,null,null,null,89,null,null,null,null,{"$f":"IF(U92=\"\",\"\",VLOOKUP(U92,$A$4:$B$67,2,TRUE))","v":""}]
[]
[null,null,null,null,null,null,null,null,null,null,null,null,null,null,null,null,"Abbrev","I/O Type","Total","Allocated to micro","Balance"]
[null,null,null,null,null,null,null,null,null,null,null,null,null,null,null,null,"IO","I/O",{"$f":"COUNTIF(S$4:S$92,$Q95)","v":1},1,{"$f":"S95-T95","v":0}]
[null,null,null,null,null,null,null,null,null,null,null,null,null,null,null,null,"I","Input",14,14,0]
[null,null,null,null,null,null,null,null,null,null,null,null,null,null,null,null,"O","Output",12,12,0]
[null,null,null,null,null,null,null,null,null,null,null,null,null,null,null,null,"IOX","I/O and Tristate",1,1,0]
[null,null,null,null,null,null,null,null,null,null,null,null,null,null,null,null,"AI","Analog Input",3,3,0]
[null,null,null,null,null,null,null,null,null,null,null,null,null,null,null,null,"AO","Analog Output",0,0,0]
[null,null,null,null,null,null,null,null,null,null,null,null,null,null,null,null,"PWM","Pulse Width",3,3,0]
[null,null,null,null,null,null,null,null,null,null,null,null,null,null,null,null,null,null,0,0,0]
[null,null,null,null,null,null,null,null,null,null,null,null,null,null,null,null,null,"Total pins",{"$f":"SUM(S95:S102)","v":34},{"$f":"SUM(T95:T102)","v":34}]